fUSD/lending_fUSD_20260218
["ID","MTS","AMOUNT","RATE_DAILY","PERIOD"]
[405867935,1771372815978,10000.01,6.5e-05,2]
[405867936,1771372816002,5423.14017367,6.5e-05,2]
[405867937,1771372816051,4576.86982633,6.5e-05,2]
[405867938,1771372816074,10000.01,6.5e-05,2]
[405867939,1771372816098,10000.01,6.5e-05,2]
[405867940,1771372816121,10000.01,6.5e-05,2]
[405867941,1771372816144,1110.45057891,6.5e-05,2]
[405867942,1771372816183,8889.55942109,6.5e-05,2]
[405867943,1771372816210,10000.01,6.5e-05,2]
[405867944,1771372816234,10000.01,6.5e-05,2]
[405867945,1771372816257,4277.2459552,6.5e-05,2]
[405867946,1771372816304,5722.7640448,6.5e-05,2]
[405867947,1771372816327,10000.01,6.5e-05,2]
[405867948,1771372816351,5000.01,6.5e-05,2]
[405867949,1771372816375,5000.01,6.5e-05,2]
[405867950,1771372816397,5000.01,6.5e-05,2]
[405867951,1771372816420,4964.54636044,6.5e-05,2]
[405867952,1771372816464,35.46363956,6.5e-05,2]
[405867953,1771372816487,5000.01,6.5e-05,2]
[405867954,1771372816510,5000.01,6.5e-05,2]
[405867955,1771372816533,5000.01,6.5e-05,2]
[405867956,1771372816555,5000.01,6.5e-05,2]
[405867957,1771372816577,5000.01,6.5e-05,2]
[405867958,1771372816599,5000.01,6.5e-05,2]
[405867959,1771372816623,1147.50560656,6.5e-05,2]
[405867960,1771372816646,1147.50560656,6.5e-05,2]
[405867961,1771372816669,1147.50560656,6.5e-05,2]
[405867962,1771372816691,1147.50560656,6.5e-05,2]
[405867963,1771372816715,1061.80433944,6.5e-05,2]
[405867964,1771372816809,85.70126712,6.5e-05,2]
[405867965,1771372816832,1147.50560656,6.5e-05,2]
[405867966,1771372816856,1147.50560656,6.5e-05,2]
[405867967,1771372816879,1147.50560656,6.5e-05,2]
[405867968,1771372816904,1147.50560656,6.5e-05,2]
[405867969,1771372816929,1147.50560656,6.5e-05,2]
[405867970,1771372816957,22592.308,6.5e-05,2]
[405867971,1771372827881,-2728.19689468,6.5e-05,2]
[405867972,1771372827913,-456.39378936,6.5e-05,2]
[405867973,1771372828018,-4087.22242128,6.5e-05,2]
[405867974,1771372830545,-3919.75342128,6.5e-05,2]
[405867975,1771372830743,-5000.01,6.5e-05,2]
[405867976,1771372830776,-5000.01,6.5e-05,2]
[405867977,1771372830796,-5000.01,6.5e-05,2]
[405867978,1771372830831,-5000.01,6.5e-05,2]
[405867979,1771372830929,-752.97804499,6.5e-05,2]
[405867980,1771372831026,-1505.95608998,6.5e-05,2]
[405867981,1771372831066,-1851.31309814,6.5e-05,2]
[405867982,1771372831140,-4863.2252781,6.5e-05,2]
[405867983,1771372831163,-273.5594438,6.5e-05,2]
[405867984,1771372831244,-10000.01,6.5e-05,2]
[405867985,1771372831347,-10000.01,6.5e-05,2]
[405867986,1771372831449,-10000.01,6.5e-05,2]
[405867987,1771372831565,-696.27034739,6.5e-05,2]
[405867988,1771372831600,-8607.46930522,6.5e-05,2]
[405867989,1771372831705,-10000.01,6.5e-05,2]
[405867990,1771372831816,-10000.01,6.5e-05,2]
[405867991,1771372832814,-5000.01,6.5e-05,2]
[405867992,1771372832928,-2079.85110002,6.5e-05,2]
[405867996,1771372893752,5944.226,6.563e-05,2]
[405867997,1771372893849,574.089,6.563e-05,2]
[405867999,1771372970012,-3481.695,6.597e-05,2]
[405868000,1771372970173,-10000.01,6.597e-05,2]
[405868001,1771372970314,-10000.01,6.597e-05,2]
[405868002,1771372970429,-10000.01,6.597e-05,2]
[405868003,1771372970611,-10000.01,6.597e-05,2]
[405868004,1771372970752,-10000.01,6.597e-05,2]
[405868005,1771372970873,-10000.01,6.597e-05,2]
[405868006,1771372970989,-10000.01,6.597e-05,2]
[405868007,1771372978943,-10000.01,6.597e-05,2]
[405868008,1771372979054,-10000.01,6.597e-05,2]
[405868009,1771372979163,-10000.01,6.597e-05,2]
[405868010,1771372979298,-10000.01,6.597e-05,2]
[405868011,1771372979394,-10000.01,6.597e-05,2]
[405868012,1771372979507,-10000.01,6.597e-05,2]
[405868013,1771372979627,-10000.01,6.597e-05,2]
[405868014,1771372979767,-10000.01,6.597e-05,2]
[405868016,1771372983550,512.86237874,6.4e-05,2]
[405868017,1771372983606,875.72475751,6.4e-05,2]
[405868018,1771372983661,1166.01466047,6.4e-05,2]
[405868019,1771372984594,2109.4568452,6.4e-05,2]
[405868020,1771373015578,337.9226747,6.497e-05,2]
[405868021,1771373105721,544.0,0.00018,30]
[405868029,1771373185309,-151.0,6.594e-05,2]
[405868030,1771373185336,-151.0,6.594e-05,2]
[405868031,1771373185364,-1200.0,6.595e-05,2]
[405868032,1771373185389,-448.07973925,6.596e-05,2]
[405868033,1771373185417,-500.0,6.596e-05,2]
[405868034,1771373185445,-500.0,6.596e-05,2]
[405868035,1771373185472,-500.0,6.596e-05,2]
[405868036,1771373185500,-500.0,6.596e-05,2]
[405868037,1771373185527,-500.0,6.596e-05,2]
[405868038,1771373185555,-500.0,6.596e-05,2]
[405868039,1771373185584,-500.0,6.596e-05,2]
[405868040,1771373185612,-500.0,6.596e-05,2]
[405868041,1771373185640,-500.0,6.596e-05,2]
[405868042,1771373185670,-500.0,6.596e-05,2]
[405868043,1771373185699,-500.0,6.596e-05,2]
[405868044,1771373185727,-500.0,6.596e-05,2]
[405868045,1771373185754,-500.0,6.596e-05,2]
[405868046,1771373185780,-500.0,6.596e-05,2]
[405868047,1771373185808,-500.0,6.596e-05,2]
[405868048,1771373185837,-500.0,6.596e-05,2]
[405868049,1771373185864,-500.0,6.596e-05,2]
[405868050,1771373185891,-500.0,6.596e-05,2]
[405868051,1771373185918,-500.0,6.596e-05,2]
[405868052,1771373185945,-500.0,6.596e-05,2]
[405868053,1771373185972,-500.0,6.596e-05,2]
[405868054,1771373186000,-500.0,6.596e-05,2]
[405868055,1771373186027,-500.0,6.596e-05,2]
[405868056,1771373186054,-500.0,6.596e-05,2]
[405868057,1771373186081,-500.0,6.596e-05,2]
[405868058,1771373186108,-500.0,6.596e-05,2]
[405868059,1771373186134,-500.0,6.596e-05,2]
[405868060,1771373186161,-500.0,6.596e-05,2]
[405868061,1771373186188,-500.0,6.596e-05,2]
[405868062,1771373186227,-500.0,6.596e-05,2]
[405868063,1771373186265,-500.0,6.596e-05,2]
[405868064,1771373186305,-500.0,6.596e-05,2]
[405868065,1771373186352,-500.0,6.596e-05,2]
[405868066,1771373186652,-500.0,6.596e-05,2]
[405868067,1771373186681,-500.0,6.596e-05,2]
[405868068,1771373186710,-500.0,6.596e-05,2]
[405868069,1771373186738,-500.0,6.596e-05,2]
[405868070,1771373186768,-500.0,6.596e-05,2]
[405868071,1771373186797,-500.0,6.596e-05,2]
[405868072,1771373186825,-500.0,6.596e-05,2]
[405868073,1771373186853,-500.0,6.596e-05,2]
[405868074,1771373186883,-500.0,6.596e-05,2]
[405868075,1771373186912,-500.0,6.596e-05,2]
[405868076,1771373186940,-500.0,6.596e-05,2]
[405868077,1771373186968,-500.0,6.596e-05,2]
[405868078,1771373186997,-500.0,6.596e-05,2]
[405868079,1771373187024,-500.0,6.596e-05,2]
[405868080,1771373187052,-500.0,6.596e-05,2]
[405868081,1771373187080,-500.0,6.596e-05,2]
[405868082,1771373187107,-500.0,6.596e-05,2]
[405868083,1771373187135,-500.0,6.596e-05,2]
[405868084,1771373187161,-500.0,6.596e-05,2]
[405868085,1771373187187,-216.0451827,6.596e-05,2]
[405868086,1771373187211,-1121.43775548,6.596e-05,2]
[405868087,1771373187235,-300.0,6.596e-05,2]
[405868088,1771373187258,-150.0,6.596e-05,2]
[405868089,1771373187282,-300.0,6.596e-05,2]
[405868090,1771373187311,-258.52795508,6.596e-05,2]
[405868091,1771373187339,-68703.90936749,6.597e-05,2]
[405868094,1771373220998,-300.0,6.696e-05,7]
[405868097,1771373279751,-250.0,7.257e-05,12]
[405868098,1771373279778,-250.0,7.257e-05,12]
[405868099,1771373279804,-250.0,7.257e-05,12]
[405868100,1771373279830,-258.0,7.257e-05,12]
[405868110,1771373369002,1087.52,5.674e-05,2]
[405868111,1771373369205,1087.52,5.727e-05,2]
[405868112,1771373369425,1087.52,5.78e-05,2]
[405868113,1771373369644,1087.52,5.833e-05,2]
[405868114,1771373369861,649.93,5.885e-05,2]
[405868115,1771373369883,437.59,5.885e-05,2]
[405868116,1771373370068,1087.52,5.938e-05,2]
[405868117,1771373370267,1087.52,5.991e-05,2]
[405868118,1771373370509,1087.52,6.043e-05,2]
[405868119,1771373371579,1087.52,6.096e-05,2]
[405868120,1771373371630,1087.52,6.149e-05,2]
[405868121,1771373371691,1087.52,6.202e-05,2]
[405868122,1771373371759,1087.52,6.254e-05,2]
[405868123,1771373371815,1087.52,6.307e-05,2]
[405868124,1771373371873,649.93,6.36e-05,2]
[405868125,1771373371895,437.59,6.36e-05,2]
[405868126,1771373372051,1087.52,6.412e-05,2]
[405868127,1771373372253,1087.52,6.465e-05,2]
[405868128,1771373372469,1087.52,6.518e-05,2]
[405868129,1771373372678,1087.52,6.571e-05,2]
[405868133,1771373431695,-207.0,6.597e-05,2]
[405868134,1771373431705,-184.88,6.597e-05,2]
[405868135,1771373431763,-645.79236201,6.597e-05,2]
[405868136,1771373431774,-169.32763799,6.597e-05,2]
[405868137,1771373431785,-389.83552787,6.597e-05,2]
[405868138,1771373431794,-150.0,6.599e-05,2]
[405868139,1771373431803,-300.0,6.599e-05,2]
[405868140,1771373431813,-500.0,6.6e-05,2]
[405868141,1771373431822,-176.81,6.6e-05,2]
[405868142,1771373431832,-176.81,6.6e-05,2]
[405868143,1771373431842,-1200.0,6.622e-05,2]
[405868144,1771373431851,-1087.52,6.623e-05,2]
[405868145,1771373431860,-941.0,6.658e-05,2]
[405868146,1771373431869,-1087.52,6.676e-05,2]
[405868147,1771373431878,-1000.0,6.696e-05,2]
[405868148,1771373431889,-450.0,6.696e-05,2]
[405868149,1771373431898,-221.79070778,6.699e-05,2]
[405868150,1771373431908,-448.07973925,6.699e-05,2]
[405868151,1771373431917,-500.0,6.699e-05,2]
[405868152,1771373431927,-500.0,6.699e-05,2]
[405868153,1771373431936,-500.0,6.699e-05,2]
[405868154,1771373431946,-500.0,6.699e-05,2]
[405868155,1771373431955,-377.31851686,6.699e-05,2]
[405868156,1771373431964,-500.0,6.699e-05,2]
[405868157,1771373431972,-625.95457302,6.699e-05,2]
[405868158,1771373431982,-500.0,6.699e-05,2]
[405868159,1771373431991,-500.0,6.699e-05,2]
[405868160,1771373432001,-500.0,6.699e-05,2]
[405868161,1771373432010,-500.0,6.699e-05,2]
[405868162,1771373432019,-500.0,6.699e-05,2]
[405868163,1771373432029,-500.0,6.699e-05,2]
[405868164,1771373432038,-500.0,6.699e-05,2]
[405868165,1771373432047,-500.0,6.699e-05,2]
[405868167,1771373432056,-500.0,6.699e-05,2]
[405868169,1771373432065,-500.0,6.699e-05,2]
[405868171,1771373432074,-7.30549251,6.699e-05,2]
[405868173,1771373432370,-492.69450749,6.699e-05,2]
[405868174,1771373432379,-500.0,6.699e-05,2]
[405868175,1771373432388,-500.0,6.699e-05,2]
[405868176,1771373432398,-500.0,6.699e-05,2]
[405868177,1771373432407,-500.0,6.699e-05,2]
[405868178,1771373432416,-500.0,6.699e-05,2]
[405868179,1771373432426,-500.0,6.699e-05,2]
[405868180,1771373432435,-500.0,6.699e-05,2]
[405868181,1771373432444,-500.0,6.699e-05,2]
[405868182,1771373432453,-500.0,6.699e-05,2]
[405868183,1771373432462,-500.0,6.699e-05,2]
[405868184,1771373432471,-500.0,6.699e-05,2]
[405868185,1771373432480,-500.0,6.699e-05,2]
[405868186,1771373432489,-500.0,6.699e-05,2]
[405868187,1771373432498,-500.0,6.699e-05,2]
[405868188,1771373432507,-500.0,6.699e-05,2]
[405868189,1771373432516,-599.0627517,6.699e-05,2]
[405868190,1771373432525,-500.0,6.699e-05,2]
[405868191,1771373432534,-500.0,6.699e-05,2]
[405868192,1771373432543,-500.0,6.699e-05,2]
[405868193,1771373432552,-500.0,6.699e-05,2]
[405868194,1771373432561,-500.0,6.699e-05,2]
[405868195,1771373432570,-450.0,6.699e-05,2]
[405868196,1771373432580,-500.0,6.699e-05,2]
[405868197,1771373432589,-500.0,6.699e-05,2]
[405868198,1771373432598,-500.0,6.699e-05,2]
[405868199,1771373432609,-500.0,6.699e-05,2]
[405868200,1771373432619,-500.0,6.699e-05,2]
[405868201,1771373432628,-9999.99,6.7e-05,2]
[405868202,1771373432637,-9999.99,6.7e-05,2]
[405868203,1771373432647,-49999.99,6.7e-05,2]
[405868204,1771373432657,-515.68,6.7e-05,2]
[405868205,1771373432666,-179478.12,6.7e-05,2]
[405868206,1771373432675,-13000.0,6.7e-05,2]
[405868207,1771373432685,-3826.83388884,6.7e-05,2]
[405868208,1771373432694,-499.99,6.8e-05,2]
[405868209,1771373432704,-299.99,6.8e-05,2]
[405868210,1771373432713,-9999.99,6.8e-05,2]
[405868211,1771373432723,-150.99,6.8e-05,2]
[405868212,1771373432732,-761.78,6.8e-05,2]
[405868213,1771373432742,-5914.98,6.8e-05,2]
[405868214,1771373432752,-2106.28,6.8e-05,2]
[405868215,1771373432762,-7136.18,6.8e-05,2]
[405868216,1771373432771,-4999.99,6.8e-05,2]
[405868217,1771373432781,-1184.93,6.8e-05,2]
[405868218,1771373432790,-9999.99,6.8e-05,2]
[405868219,1771373432800,-14638.92,6.8e-05,2]
[405868220,1771373432809,-1542.1,6.8e-05,2]
[405868221,1771373432819,-78742.97599418,6.8e-05,2]
[405868222,1771373432831,-2680.98400582,6.8e-05,2]
[405868223,1771373432840,-1473.32,6.8e-05,2]
[405868224,1771373432849,-999.99,6.8e-05,2]
[405868225,1771373432858,-9999.99,6.8e-05,2]
[405868226,1771373432867,-9999.99,6.8e-05,2]
[405868227,1771373432877,-29124.47,6.8e-05,2]
[405868228,1771373432885,-2984.7,6.8e-05,2]
[405868229,1771373432894,-3706.48,6.8e-05,2]
[405868230,1771373432903,-14037.81,6.8e-05,2]
[405868231,1771373432913,-150.99,6.8e-05,2]
[405868232,1771373432922,-311.5,6.8e-05,2]
[405868233,1771373432932,-16712.27493227,6.8e-05,2]
[405868234,1771373432943,-9287.72506773,6.8e-05,2]
[405868235,1771373432953,-23747.49,6.809e-05,2]
[405868236,1771373432962,-39000.0,6.9e-05,2]
[405868237,1771373432971,-32426.3382614,7e-05,2]
[405868238,1771373432983,-19673.6617386,7e-05,2]
[405868239,1771373432992,-250.0,7.253e-05,2]
[405868240,1771373433002,-250.0,7.253e-05,2]
[405868241,1771373433011,-250.0,7.259e-05,2]
[405868242,1771373433021,-255.0,7.259e-05,2]
[405868243,1771373433031,-420.0,7.259e-05,2]
[405868244,1771373433041,-1680.0,7.285e-05,2]
[405868245,1771373433051,-580.0,7.397e-05,2]
[405868246,1771373433060,-1256.0,7.521e-05,2]
[405868247,1771373433070,-4912.22,7.549e-05,2]
[405868248,1771373433080,-23454.9,7.671e-05,2]
[405868249,1771373433090,-574.0,7.694e-05,2]
[405868250,1771373433100,-1350.0,7.71e-05,2]
[405868251,1771373433109,-1559.0,7.725e-05,2]
[405868252,1771373433119,-358.0,7.924e-05,2]
[405868253,1771373433128,-37943.359931,7.945e-05,2]
[405868254,1771373433139,-433.0,7.985e-05,2]
[405868255,1771373433149,-587.0,7.985e-05,2]
[405868256,1771373433159,-65100.0,8e-05,2]
[405868257,1771373433169,-2351.0,8.013e-05,2]
[405868258,1771373433178,-1285.1,8.178e-05,2]
[405868259,1771373433188,-500.0,8.219e-05,2]
[405868260,1771373433197,-202.89365559,8.219e-05,2]
[405868261,1771373433207,-500.0,8.219e-05,2]
[405868262,1771373433217,-500.0,8.219e-05,2]
[405868263,1771373433226,-500.0,8.219e-05,2]
[405868264,1771373433236,-500.0,8.219e-05,2]
[405868265,1771373433245,-500.0,8.219e-05,2]
[405868266,1771373433254,-500.0,8.219e-05,2]
[405868267,1771373433264,-500.0,8.219e-05,2]
[405868268,1771373433274,-150.0,8.219e-05,2]
[405868269,1771373433283,-375.839389,8.219e-05,2]
[405868270,1771373433298,-161.074023,8.219e-05,2]
[405868271,1771373433307,-500.0,8.219e-05,2]
[405868272,1771373433316,-3532.39,8.219e-05,2]
[405868273,1771373433325,-156.0,8.225e-05,2]
[405868274,1771373433335,-355.0,8.225e-05,2]
[405868275,1771373433345,-320.57102133,8.242e-05,2]
[405868276,1771373433358,-500.0,8.493e-05,2]
[405868277,1771373433367,-319.73,8.576e-05,2]
[405868278,1771373433377,-254.0,8.578e-05,2]
[405868279,1771373433386,-187.0,8.595e-05,2]
[405868280,1771373433398,-500.0,8.6e-05,2]
[405868281,1771373433407,-473.0,8.612e-05,2]
[405868282,1771373433416,-307.0,8.629e-05,2]
[405868283,1771373433427,-1252.0,8.669e-05,2]
[405868284,1771373433436,-250.0,8.717e-05,2]
[405868285,1771373433445,-500.0,8.767e-05,2]
[405868286,1771373433458,-736.0,8.783e-05,2]
[405868287,1771373433467,-823.0,8.783e-05,2]
[405868288,1771373433477,-3292.0,8.814e-05,2]
[405868289,1771373433486,-500.0,9.041e-05,2]
[405868290,1771373433496,-1852.42,9.115e-05,2]
[405868291,1771373433505,-230.75,9.14e-05,2]
[405868292,1771373433514,-381.17,9.142e-05,2]
[405868293,1771373433523,-501.97,9.187e-05,2]
[405868294,1771373433532,-199.0,9.207e-05,2]
[405868295,1771373433542,-445.0,9.226e-05,2]
[405868296,1771373433551,-488.0,9.244e-05,2]
[405868297,1771373433561,-370.0,9.263e-05,2]
[405868298,1771373433569,-500.0,9.315e-05,2]
[405868299,1771373433579,-1753.0,9.568e-05,2]
[405868300,1771373433589,-1249.0,9.587e-05,2]
[405868301,1771373433598,-500.0,9.589e-05,2]
[405868302,1771373433608,-1252.0,9.661e-05,2]
[405868303,1771373433618,-1152.0,9.662e-05,2]
[405868304,1771373433627,-4609.0,9.696e-05,2]
[405868305,1771373433637,-500.0,9.863e-05,2]
[405868306,1771373433646,-898.32890406,0.0001,2]
[405868307,1771373433656,-725.29300865,0.0001,2]
[405868308,1771373433666,-725.29300865,0.0001,2]
[405868309,1771373433675,-725.29300865,0.0001,2]
[405868310,1771373433684,-151.0,0.0001,2]
[405868311,1771373433694,-161.51480049,0.0001,2]
[405868312,1771373433703,-996.02009371,0.0001,2]
[405868313,1771373433713,-200.0,0.0001,2]
[405868314,1771373433722,-500.0,0.0001,2]
[405868315,1771373433732,-500.0,0.0001,2]
[405868316,1771373433741,-500.0,0.0001,2]
[405868317,1771373433750,-500.0,0.0001,2]
[405868318,1771373433760,-500.0,0.0001,2]
[405868319,1771373433769,-500.0,0.0001,2]
[405868320,1771373433778,-500.0,0.0001,2]
[405868321,1771373433788,-164.43370107,0.0001,2]
[405868322,1771373433797,-500.0,0.0001,2]
[405868323,1771373433806,-500.0,0.0001,2]
[405868324,1771373433816,-500.0,0.0001,2]
[405868325,1771373433825,-500.0,0.0001,2]
[405868326,1771373433834,-500.0,0.0001,2]
[405868327,1771373433843,-500.0,0.0001,2]
[405868328,1771373433852,-500.0,0.0001,2]
[405868329,1771373433862,-500.0,0.0001,2]
[405868330,1771373433873,-500.0,0.0001,2]
[405868331,1771373433882,-500.0,0.0001,2]
[405868332,1771373433891,-500.0,0.0001,2]
[405868333,1771373433900,-500.0,0.0001,2]
[405868334,1771373433909,-500.0,0.0001,2]
[405868335,1771373433919,-500.0,0.0001,2]
[405868336,1771373433927,-500.0,0.0001,2]
[405868337,1771373433937,-500.0,0.0001,2]
[405868338,1771373433946,-200.0,0.0001,2]
[405868339,1771373433955,-151.0,0.0001,2]
[405868340,1771373433965,-151.0,0.0001,2]
[405868341,1771373433974,-151.0,0.0001,2]
[405868342,1771373433984,-151.0,0.0001,2]
[405868343,1771373433993,-151.0,0.0001,2]
[405868344,1771373434002,-151.0,0.0001,2]
[405868345,1771373434012,-151.0,0.0001,2]
[405868346,1771373434021,-151.0,0.0001,2]
[405868347,1771373434030,-151.0,0.0001,2]
[405868348,1771373434039,-151.0,0.0001,2]
[405868349,1771373434049,-151.0,0.0001,2]
[405868350,1771373434058,-151.0,0.0001,2]
[405868351,1771373434068,-151.0,0.0001,2]
[405868352,1771373434077,-151.0,0.0001,2]
[405868353,1771373434086,-151.0,0.0001,2]
[405868354,1771373434096,-151.0,0.0001,2]
[405868355,1771373434105,-151.0,0.0001,2]
[405868356,1771373434114,-151.0,0.0001,2]
[405868357,1771373434124,-151.0,0.0001,2]
[405868358,1771373434133,-151.0,0.0001,2]
[405868359,1771373434143,-151.0,0.0001,2]
[405868360,1771373434152,-151.0,0.0001,2]
[405868361,1771373434163,-151.0,0.0001,2]
[405868362,1771373434172,-151.0,0.0001,2]
[405868363,1771373434182,-151.0,0.0001,2]
[405868364,1771373434191,-151.0,0.0001,2]
[405868365,1771373434200,-151.0,0.0001,2]
[405868366,1771373434218,-151.0,0.0001,2]
[405868367,1771373434235,-151.0,0.0001,2]
[405868368,1771373434248,-151.0,0.0001,2]
[405868369,1771373434264,-151.0,0.0001,2]
[405868370,1771373434279,-151.0,0.0001,2]
[405868371,1771373434295,-151.0,0.0001,2]
[405868372,1771373434309,-151.0,0.0001,2]
[405868373,1771373434322,-151.0,0.0001,2]
[405868374,1771373434336,-151.0,0.0001,2]
[405868375,1771373434351,-151.0,0.0001,2]
[405868376,1771373434367,-151.0,0.0001,2]
[405868377,1771373434382,-346.31745438,0.0001,2]
[405868378,1771373434398,-337.0,0.0001,2]
[405868379,1771373434413,-337.0,0.0001,2]
[405868380,1771373434429,-337.85061866,0.0001,2]
[405868381,1771373434444,-500.0,0.00010108,2]
[405868382,1771373434457,-500.0,0.00010137,2]
[405868383,1771373434473,-500.0,0.00010411,2]
[405868384,1771373434486,-200.0,0.00010548,2]
[405868385,1771373434500,-500.0,0.00010548,2]
[405868386,1771373434512,-200.0,0.00010548,2]
[405868387,1771373434524,-1613.0,0.00010628,2]
[405868388,1771373434541,-2129.0,0.00010631,2]
[405868389,1771373434553,-6453.0,0.00010665,2]
[405868390,1771373434565,-500.0,0.00010685,2]
[405868391,1771373434578,-5869.81792757,0.000109,2]
[405868392,1771373434595,-5869.81792752,0.000109,2]
[405868393,1771373434607,-5869.81792752,0.000109,2]
[405868394,1771373434619,-184.46,0.00010959,2]
[405868395,1771373434631,-500.0,0.00010959,2]
[405868396,1771373434643,-151.0,0.00010959,4]
[405868397,1771373434656,-200.0,0.00011096,2]
[405868398,1771373434677,-500.0,0.00011096,2]
[405868399,1771373434689,-200.0,0.00011096,2]
[405868400,1771373434702,-48841.46571891,0.00011099,2]
[405868401,1771373434714,-4920.11981129,0.00011099,2]
[405868402,1771373434733,-1254.41808677,0.00011099,2]
[405868405,1771373437929,-1677.08227952,0.00011099,2]
[405868408,1771373438586,-40989.84554133,0.00011099,2]
[405868409,1771373438595,-48841.46571891,0.00011099,2]
[405868410,1771373438605,-48841.46571891,0.00011099,2]
[405868411,1771373438614,-48841.46571891,0.00011099,2]
[405868412,1771373438624,-48841.46571891,0.00011099,2]
[405868413,1771373438633,-64600.55093817,0.00011099,2]
[405868414,1771373438643,-64600.55093808,0.00011099,2]
[405868415,1771373438652,-64600.55093808,0.00011099,2]
[405868416,1771373438661,-151.0,0.00011099,2]
[405868417,1771373438671,-151.0,0.00011099,2]
[405868418,1771373438681,-1580.76891287,0.00011222,2]
[405868419,1771373438691,-48841.46571891,0.00011232,2]
[405868420,1771373438700,-500.0,0.00011233,2]
[405868421,1771373438709,-13523.61,0.00011233,2]
[405868422,1771373438720,-150.0,0.00011233,2]
[405868423,1771373438729,-151.0,0.00011237,4]
[405868424,1771373438738,-5869.81792752,0.00011386,2]
[405868425,1771373438748,-500.0,0.00011507,2]
[405868426,1771373438758,-3532.39,0.00011507,2]
[405868427,1771373438768,-200.0,0.00011551,2]
[405868428,1771373438777,-200.0,0.00011644,2]
[405868429,1771373438787,-500.0,0.00011644,2]
[405868430,1771373438796,-218.04759767,0.00011644,2]
[405868431,1771373438806,-634.0,0.00011691,2]
[405868432,1771373438817,-3620.0,0.00011693,2]
[405868433,1771373438827,-9035.0,0.00011732,2]
[405868434,1771373438836,-500.0,0.00011781,2]
[405868435,1771373438845,-433.69347785,0.00011791,2]
[405868436,1771373438855,-150.0,0.00011791,2]
[405868437,1771373438864,-48841.46571891,0.00012021,2]
[405868438,1771373438874,-500.0,0.00012055,2]
[405868439,1771373438884,-996.0200937,0.00012145,2]
[405868440,1771373438893,-164.61380668,0.00012173,2]
[405868441,1771373438903,-500.0,0.00012173,2]
[405868442,1771373438912,-500.0,0.00012173,2]
[405868443,1771373438921,-500.0,0.00012173,2]
[405868444,1771373438931,-500.0,0.00012173,2]
[405868445,1771373438941,-500.0,0.00012173,2]
[405868446,1771373438950,-500.0,0.00012173,2]
[405868447,1771373438961,-500.0,0.00012173,2]
[405868448,1771373438970,-500.0,0.00012173,2]
[405868449,1771373438979,-500.0,0.00012173,2]
[405868450,1771373438990,-500.0,0.00012173,2]
[405868451,1771373438999,-160.1837527,0.00012173,2]
[405868452,1771373439009,-160.37289206,0.00012173,2]
[405868453,1771373439019,-500.0,0.00012173,2]
[405868454,1771373439029,-500.0,0.00012173,2]
[405868455,1771373439039,-163.58520611,0.00012173,2]
[405868456,1771373439049,-166.78412047,0.00012173,2]
[405868457,1771373439059,-500.0,0.00012173,2]
[405868458,1771373439069,-500.0,0.00012173,2]
[405868459,1771373439078,-500.0,0.00012173,2]
[405868460,1771373439088,-500.0,0.00012173,2]
[405868461,1771373439097,-500.0,0.00012173,2]
[405868462,1771373439107,-500.0,0.00012173,2]
[405868463,1771373439116,-545.77855618,0.00012173,2]
[405868464,1771373439125,-500.0,0.00012173,2]
[405868465,1771373439135,-500.0,0.00012173,2]
[405868466,1771373439144,-500.0,0.00012173,2]
[405868467,1771373439154,-500.46642231,0.00012173,2]
[405868468,1771373439163,-500.0,0.00012173,2]
[405868469,1771373439173,-500.0,0.00012173,2]
[405868470,1771373439183,-500.0,0.00012173,2]